Cogmind - Beta 12 @@@ ROGUE MODE // 2024.02.23 @ 00:10:22 Player: monistgf Result: Self-destructed Performance ------------- Evolutions (7) 3500 Regions Visited (9) 1800 Robots Destroyed (155) 775 Value Destroyed (5875) 5875 Prototype IDs (8) 160 Alien Tech Used (0) 0 Bonus (301) 301 TOTAL SCORE: 12411 Bonus ------- High Alert Combat Kills 301 Cogmind --------- Core Integrity 597/1300 Matter 300/300 Energy 95/100 System Corruption 7% Temperature Cool (0) Movement Core (900) Ox17 Location -3/Research Parts ------- > --- POWER (2) -------- (None) > --- PROPULSION (6) --- (None) > --- UTILITY (9) ------ Advanced Heat Sink Advanced Coolant Injector High-capacity Storage Unit Machine Analyzer Advanced Signal Interpreter Seismic Detector System Restoration Module > --- WEAPON (4) ------- Scythe Plasma Sword Plasma Sword > --- INVENTORY (20) --- Advanced Heat Sink High-capacity Storage Unit High-capacity Matter Pod (200) Advanced Targeting Computer Improved Kinecellerator Advanced Force Field Advanced Force Field Gamma Rifle Advanced Beam Rifle Gatling Laser Improved Spread Laser Compact HERF Cannon Plasma Cannon Coil Gun Mass Driver Peak State ------------ > --- POWER ------------ Light Fission Core Light Antimatter Reactor > --- PROPULSION ------- Heavy Treads Carbon-fiber Leg Carbon-fiber Leg Titanium Leg Biometal Leg > --- UTILITY ---------- Advanced Power Amplifier Advanced Heat Sink Cooling System Advanced Coolant Injector High-capacity Storage Unit Machine Analyzer Long-range Sensor Array Advanced Signal Interpreter Advanced Targeting Computer > --- WEAPON ----------- Gamma Rifle Advanced Beam Rifle Phase Gun Plasma Cannon > --- INVENTORY -------- High-capacity Storage Unit High-capacity Matter Pod Seismic Detector Advanced Targeting Computer Improved Kinecellerator Advanced Force Field Advanced Force Field Advanced Beam Rifle Gatling Laser Improved Spread Laser Phase Gun Mass Driver Mass Driver Scythe Plasma Sword Plasma Sword [Rating: 111] Favorites ----------- Power Heavy Ion Engine Engine Heavy Ion Engine Power Core Light Fission Core Reactor Light Antimatter Reactor Propulsion Aluminum Leg Treads Armored Treads Leg Aluminum Leg Wheel Compact Wheel Hover Unit Improved Antigrav System Utility High-capacity Storage Unit Device Cooling System Storage High-capacity Storage Unit Processor Machine Analyzer Weapon Advanced Beam Rifle Energy Gun Advanced Beam Rifle Energy Cannon Plasma Cannon Ballistic Gun Gauss Rifle Ballistic Cannon Mass Driver Slashing Weapon Scythe Build | -11 -10 -9 -9 -8 -7 -6 -5 -4 -3 ------- Run | Jun Mat Mat Sto Mat Fac Fac Fac Fac Res Slots Evolved 14 | . . 2 . 2 2 2 2 2 2 Power 1 | . . . . . . . . 1 . Propulsion 4 | . . 1 . 1 1 . . . 1 Utility 7 | . . . . . 1 2 2 1 1 Weapon 2 | . . 1 . 1 . . . . . Parts Attached 183 | . 3 13 22 17 32 3 38 20 35 Power 15 | . 2 . 3 . 1 1 1 2 5 Engine 6 | . 2 . 3 . 1 . . . . Core 4 | . . . . . . 1 1 2 . Reactor 5 | . . . . . . . . . 5 Propulsion 60 | . . 5 6 5 11 . 15 5 13 Treads 3 | . . . . 1 . . 1 . 1 Leg 52 | . . 4 6 4 11 . 14 5 8 Wheel 3 | . . 1 . . . . . . 2 Hover 2 | . . . . . . . . . 2 Flight . | . . . . . . . . . . Utility 25 | . 1 1 2 1 3 2 5 5 5 Device 20 | . 1 1 2 . 2 1 4 4 5 Storage 1 | . . . . 1 . . . . . Processor 4 | . . . . . 1 1 1 1 . Hackware . | . . . . . . . . . . Protection . | . . . . . . . . . . Artifact . | . . . . . . . . . . Weapon 83 | . . 7 11 11 17 . 17 8 12 Energy Gun 19 | . . 1 1 5 3 . 2 2 5 Energy Cannon 1 | . . . . . . . . 1 . Ballistic Gun 37 | . . 6 10 5 10 . 6 . . Ballistic Cannon 9 | . . . . . . . 4 3 2 Launcher . | . . . . . . . . . . Special Weapon . | . . . . . . . . . . Impact Weapon . | . . . . . . . . . . Slashing Weapon 17 | . . . . 1 4 . 5 2 5 Piercing Weapon . | . . . . . . . . . . Special Melee Weapon . | . . . . . . . . . . Unidentified Prototypes 7 | . 1 1 2 1 1 . . . 1 Parts Lost 61 | . 1 . 3 4 4 . 6 8 35 Power 10 | . 1 . 1 . . . . 1 7 Propulsion 27 | . . . 2 1 2 . 3 4 15 Utility 7 | . . . . . . . 1 1 5 Weapon 17 | . . . . 3 2 . 2 2 8 Highest Loss Streak 17 | . 1 . 2 2 1 . 3 5 17 To Critical Strikes . | . . . . . . . . . . Average Slot Usage (%) 96 | . 96 94 99 99 99 100 97 92 81 Engine 4 | . 13 11 11 9 7 5 . . . Core 2 | . . . . . . . 5 5 4 Treads 1 | . . . . 4 1 . 1 . . Leg 29 | . 28 25 33 31 35 33 27 26 17 Device 11 | . 11 11 11 9 6 13 14 18 17 Storage 7 | . 14 11 11 9 7 6 5 5 4 Processor 8 | . . . . . 6 13 17 15 12 Energy Gun 8 | . 14 1 5 10 16 13 2 7 6 Ballistic Gun 15 | . 14 28 27 25 12 13 14 4 . Ballistic Cannon 1 | . . . . . . . 3 3 . Slashing Weapon 1 | . . . . . . . 1 1 6 Naked Turns . | . . . . . . . . . . Heaviest Build 95 | 12 20 25 27 64 62 63 93 95 93 Greatest Support 113 | 20 20 30 33 43 94 91 100 100 113 Greatest Overweight (x) 5 | . . 2 . 2 1 . 1 1 5 Average Overweight (x) . | . . . . 1 . . . . . Largest Inventory Capacity 20 | . 8 8 8 20 20 20 20 20 20 Average Capacity 17 | . 8 8 8 19 20 20 20 20 20 Most Carried 20 | . 8 8 8 20 20 19 20 20 20 Average Carried 15 | . 7 7 7 11 19 17 18 17 16 Final Capacity 20 | 8 8 8 8 20 20 20 20 20 20 Final Carried 20 | 6 8 8 8 19 19 18 19 20 15 Class Distribution -------------------- 42% | Skirmisher 27% | Gunner 10% | Scavenger-Gunner 6% | Assassin 4% | Scavenger-Assassin 4% | Mutant Dominant Class ---------------- Mutant | -10/Materials Gunner | -9/Materials Scavenger-Gunner | -9/Storage Gunner | -8/Materials Skirmisher | -7/Factory Skirmisher | -6/Factory Skirmisher | -5/Factory Gunner | -4/Factory Scavenger-Assassin | -3/Research Resources | -11 -10 -9 -9 -8 -7 -6 -5 -4 -3 ----------- Run | Jun Mat Mat Sto Mat Fac Fac Fac Fac Res Matter Collected 5140 | 200 28 398 836 515 807 . 1290 538 528 Remotely . | . . . . . . . . . . Salvage Created 6401 | . 28 489 894 968 1186 . 1393 447 996 Parts 338 | . 3 21 57 59 53 . 82 14 49 Haulers Intercepted 2 | . . 1 . . . . . 1 . Recyclers Shooed 7 | . . . . 1 2 . 2 . 2 Parts Field Recycled . | . . . . . . . . . . Retrieved Matter . | . . . . . . . . . . Parts Self-Destructed . | . . . . . . . . . . Prevented . | . . . . . . . . . . Kills | -11 -10 -9 -9 -8 -7 -6 -5 -4 -3 ------- Run | Jun Mat Mat Sto Mat Fac Fac Fac Fac Res Combat Hostiles Destroyed 126 | . . 8 21 27 23 . 25 8 14 Melee 8 | . . . . . . . . . 8 Guns 106 | . . 8 21 27 23 . 18 5 4 Cannons 11 | . . . . . . . 7 3 1 Classes Destroyed 13 | . 1 4 3 . 3 . 1 1 . Worker 6 | . . . . . 1 . 4 . 1 Builder 6 | . . . . . 1 . 4 1 . Tunneler 1 | . . . . . . . . 1 . Hauler 2 | . . 1 . . . . . 1 . Recycler 5 | . . 1 . 1 1 . 1 . 1 Operator 3 | . . . 1 . . . . . 2 Watcher 6 | . 1 . . . . . 5 . . Swarmer 38 | . . . 3 14 3 . 10 5 3 Grunt 46 | . . 7 11 7 14 . 2 2 3 Duelist 2 | . . . 1 . . . . . 1 Sentry 18 | . . 1 6 6 3 . 1 1 . Hunter 5 | . . . . . . . 3 . 2 Programmer 17 | . . . . . 3 . 9 . 5 Best Kill Streak 8 | . 1 8 4 7 6 . 8 5 3 Combat Bots Only 8 | . . 4 3 7 5 . 8 5 3 Max Kills in Single Turn 3 | . 1 1 2 2 2 . 3 1 1 Gunslinging 1 | . . . 1 1 1 . . . . Exploded . | . . . . . . . . . . Melee 1 | . . . . . . . . . 1 Uniques/NPCs Destroyed . | . . . . . . . . . . Combat | -11 -10 -9 -9 -8 -7 -6 -5 -4 -3 -------- Run | Jun Mat Mat Sto Mat Fac Fac Fac Fac Res Damage Taken 11282 | . . 331 1064 1193 1565 . 1750 1239 4140 Core 1355 | . . 42 139 208 99 . 133 31 703 Absorbed by Shields 539 | . . . . . . . 428 111 . Reduced by Siege Mode 152 | . . . . . . . . . 152 Regen/Repaired (Parts) 217 | . . . . . 40 . 177 . . Core Remaining (%) 85 | 100 100 . 54 62 85 100 86 97 . Volleys Fired 297 | . 1 26 53 54 57 . 66 22 18 Largest 4 | . 2 3 3 4 4 . 4 4 4 Hottest 308 | . 60 86 106 129 220 . 192 286 308 Shots Fired 1033 | . 2 78 159 207 226 . 234 67 60 Gun 937 | . 2 78 159 207 226 . 180 46 39 Cannon 96 | . . . . . . . 54 21 21 Launcher . | . . . . . . . . . . Special . | . . . . . . . . . . Kinetic 755 | . 1 73 127 183 102 . 221 35 13 Thermal 212 | . . . . . 124 . 13 32 43 Explosive . | . . . . . . . . . . Electromagnetic 66 | . 1 5 32 24 . . . . 4 Robot Hit Streak 19 | . 1 6 19 17 16 . 13 17 16 Robot Miss Streak 6 | . 1 4 3 5 6 . 4 5 2 Penetration Max 1 | . . . . . . . 1 . . Secondary Targets 21 | . . . 6 5 8 . 1 1 . Max Gunslinging Chain 1 | . . . 1 1 1 . 1 1 . Shots Hit Robots 694 | . 1 41 99 124 153 . 144 53 79 Core Hits 290 | . 1 16 31 48 63 . 77 25 29 Critical Kills 3 | . . . . . . . . 1 2 Critical Parts Destroyed 1 | . . . . . . . 1 . . Critical Strikes 23 | . . 1 . . 4 . 4 3 11 Burn 7 | . . . . . 4 . . 2 1 Meltdown 2 | . . . . . . . . . 2 Destroy 2 | . . . . . . . 1 1 . Blast 3 | . . . . . . . 3 . . Corrupt 1 | . . 1 . . . . . . . Sever 8 | . . . . . . . . . 8 Melee Attacks 88 | . . . . . 10 . 25 4 49 Impact . | . . . . . . . . . . Slashing 88 | . . . . . 10 . 25 4 49 Piercing . | . . . . . . . . . . Sneak Attacks 7 | . . . . . . . . 3 4 Combat Hostiles . | . . . . . . . . . . Follow-up Attacks 7 | . . . . . . . . . 7 Damage Inflicted 15708 | . 15 613 1698 2060 3113 . 4044 1392 2773 Guns 11775 | . 15 613 1687 2038 2962 . 2965 787 708 Cannons 1778 | . . . . . . . 1000 408 370 Explosions 112 | . . . . . 112 . . . . Melee 1910 | . . . . . . . 30 185 1695 Ramming 133 | . . . 11 22 39 . 49 12 . Kinetic 9110 | . 15 574 1183 1625 1179 . 3773 509 252 Thermal 3553 | . . . . . 1895 . 192 686 780 Explosive . | . . . . . . . . . . Electromagnetic 1002 | . . 39 504 413 . . . . 46 Impact . | . . . . . . . . . . Slashing 1910 | . . . . . . . 30 185 1695 Piercing . | . . . . . . . . . . Highest Corruption 10 | . . . . . 4 . 8 . 10 Average Corruption 4 | . . . . . 3 . 5 . 4 Corruption Purged 3 | . . . . . . . . . 3 Corruption Blocked . | . . . . . . . . . . Effects 88 | . . . . . 29 . 51 . 8 Message Errors 14 | . . . . . 4 . 9 . 1 Matter Fused 17 | . . . . . 3 . 10 . 4 Heat Flow Errors 13 | . . . . . 3 . 10 . . Energy Discharges 13 | . . . . . 4 . 7 . 2 Parts Rejected 3 | . . . . . 2 . 1 . . Parts Fused 2 | . . . . . . . 2 . . Data Loss (minor) 14 | . . . . . 8 . 6 . . Data Loss (major) 2 | . . . . . 1 . 1 . . Misfires 5 | . . . . . 2 . 2 . 1 Alerts 3 | . . . . . 2 . 1 . . Weapon Failures 2 | . . . . . . . 2 . . Overload Shots . | . . . . . . . . . . Overflow Damage 262 | . . . . . 22 . 62 89 89 Projectiles 100 | . . . . . . . 62 14 24 Explosions 22 | . . . . . 22 . . . . Melee 140 | . . . . . . . . 75 65 Knockbacks 14 | . . . . . . . 12 . 2 Impact 1 | . . . . . . . 1 . . Kinetic 12 | . . . . . . . 10 . 2 Secondary 1 | . . . . . . . 1 . . Self-Inflicted Damage 48 | . . . . . 48 . . . . Shots 1 | . . . . . 1 . . . . Rammed . | . . . . . . . . . . Targets Rammed 18 | . . . 1 5 4 . 6 2 . Kicked 18 | . . . 1 5 4 . 6 2 . Crushed . | . . . . . . . . . . Highest Temperature 291 | . 12 242 103 10 291 . 226 190 186 Average Temperature 72 | . 8 86 25 4 94 . 75 88 51 Received Heat Transfer 1869 | . . 165 381 378 498 . 16 45 386 Effects 2 | . . . . . 2 . . . . Energy Bleed 1 | . . . . . 1 . . . . Interference 1 | . . . . . 1 . . . . Siege Activations 1 | . . . . . . . . . 1 Total Turns 33 | . . . . . . . . . 33 Longest Duration 33 | . . . . . . . . . 33 Robots Corrupted . | . . . . . . . . . . Combat Hostiles . | . . . . . . . . . . Parts Fried 2 | . . . 1 1 . . . . . Impact Corruptions . | . . . . . . . . . . Robots Melted 3 | . . . . . . . . 1 2 Combat Hostiles 1 | . . . . . . . . . 1 Parts Melted 29 | . . . . . 8 . 1 6 14 Heat Transferred 6303 | . . . . . 3494 . 277 1296 1236 Parts Sabotaged . | . . . . . . . . . . Parts Stolen . | . . . . . . . . . . Parts Stripped . | . . . . . . . . . . Power Chain Reactions . | . . . . . . . . . . Missiles Intercepted . | . . . . . . . . . . Alert | -11 -10 -9 -9 -8 -7 -6 -5 -4 -3 ------- Run | Jun Mat Mat Sto Mat Fac Fac Fac Fac Res Peak Influence 628 | . 15 314 628 575 422 193 559 575 439 Initial 301 | . . 5 132 214 134 193 94 273 301 Average 279 | . 5 129 335 341 283 193 253 380 298 Maximum Alert Level 2 | . . 1 2 2 2 . 2 2 2 Low Security (%) 24 | . 100 62 13 . 15 100 42 . 5 Level 1 57 | . . 37 61 76 71 . 32 70 92 Level 2 17 | . . . 25 23 13 . 25 29 1 Level 3 . | . . . . . . . . . . Level 4 . | . . . . . . . . . . Level 5 . | . . . . . . . . . . High Security . | . . . . . . . . . . Max Security . | . . . . . . . . . . Squads Dispatched 23 | . . 1 2 2 5 . 7 3 3 Investigation 6 | . . . 2 2 1 . 1 . . Extermination 12 | . . . . . 3 . 5 1 3 Reinforcement 5 | . . 1 . . 1 . 1 2 . Assault . | . . . . . . . . . . Garrison . | . . . . . . . . . . Intercept . | . . . . . . . . . . Searches Triggered . | . . . . . . . . . . Construction Impeded . | . . . . . . . . . . Haulers Reinforced 1 | . . . . . . . . 1 . Active Scanning Responses . | . . . . . . . . . . Cargo Convoy Interrupts . | . . . . . . . . . . Stealth | -11 -10 -9 -9 -8 -7 -6 -5 -4 -3 --------- Run | Jun Mat Mat Sto Mat Fac Fac Fac Fac Res Distress Signals 11 | . . 2 1 3 1 . 1 2 1 Communications Jammed . | . . . . . . . . . . Distress Signals . | . . . . . . . . . . Times Spotted 203 | . 1 14 27 39 29 . 46 21 26 Peak Tracking Total 10 | . 1 5 5 6 5 . 6 7 10 Tactical Retreats 15 | . . 3 1 1 2 . 1 5 2 Traps | -11 -10 -9 -9 -8 -7 -6 -5 -4 -3 ------- Run | Jun Mat Mat Sto Mat Fac Fac Fac Fac Res Traps Triggered 11 | . . . 2 2 3 . 2 2 . Indirectly . | . . . . . . . . . . Trap Hack Attempts . | . . . . . . . . . . Triggered . | . . . . . . . . . . Disarmed . | . . . . . . . . . . Reprogrammed . | . . . . . . . . . . Reused . | . . . . . . . . . . Traps Extracted . | . . . . . . . . . . Installed . | . . . . . . . . . . Triggered . | . . . . . . . . . . Machines | -11 -10 -9 -9 -8 -7 -6 -5 -4 -3 ---------- Run | Jun Mat Mat Sto Mat Fac Fac Fac Fac Res Machines Disabled 17 | . . . 7 . 2 . 6 . 2 Max in Single Turn 2 | . . . 1 . 2 . 2 . 1 Garrison Access 2 | . . . . 1 . . . 1 . Machines Repaired . | . . . . . . . . . . Machines Sabotaged . | . . . . . . . . . . Overloaded Fab Kills . | . . . . . . . . . . Hacking | -11 -10 -9 -9 -8 -7 -6 -5 -4 -3 --------- Run | Jun Mat Mat Sto Mat Fac Fac Fac Fac Res Machines Accessed 32 | . 1 1 7 5 7 1 5 2 3 Terminals 21 | . 1 1 7 4 4 . 1 . 3 Fabricators 3 | . . . . . 2 . 1 . . Repair Stations 5 | . . . . . 1 1 2 1 . Recycling Units 1 | . . . . . . . 1 . . Scanalyzers . | . . . . . . . . . . Garrison Access 2 | . . . . 1 . . . 1 . Total Hacks 82 | . 4 2 17 20 15 1 16 2 5 Successful 39 | . 1 . 8 10 8 . 10 1 1 Failed 43 | . 3 2 9 10 7 1 6 1 4 Catastrophic 11 | . 1 . 2 3 2 1 . . 2 Database Lockouts . | . . . . . . . . . . Manual 19 | . . . 3 6 6 . 2 . 2 Terminals 56 | . 4 2 17 18 8 . 2 . 5 Fabricators 7 | . . . . . 4 . 3 . . Repair Stations 13 | . . . . . 3 1 8 1 . Recycling Units 3 | . . . . . . . 3 . . Scanalyzers . | . . . . . . . . . . Garrison Access 3 | . . . . 2 . . . 1 . Terminal Hacks 19 | . 1 . 7 8 2 . 1 . . Record 1 | . . . 1 . . . . . . Prototype ID Bank 1 | . . . 1 . . . . . . Open Door 3 | . . . 3 . . . . . . Level Access Points 1 | . 1 . . . . . . . . Branch Access Points 1 | . . . . . 1 . . . . Alert Level 5 | . . . . 4 . . 1 . . Unreport Threat 2 | . . . . 2 . . . . . Locate Traps 3 | . . . 2 . 1 . . . . Registered Prototypes 1 | . . . . 1 . . . . . Zone Layout 1 | . . . . 1 . . . . . Fabricator Hacks 3 | . . . . . 1 . 2 . . Network Status 2 | . . . . . 1 . 1 . . Build 1 | . . . . . . . 1 . . Repair Station Hacks 8 | . . . . . 2 . 6 . . Scan Component 4 | . . . . . 1 . 3 . . Repair 4 | . . . . . 1 . 3 . . Recycling Unit Hacks 1 | . . . . . . . 1 . . Process 1 | . . . . . . . 1 . . Scanalyzer . | . . . . . . . . . . Garrison Access Hacks 2 | . . . . 1 . . . 1 . Seal Access 2 | . . . . 1 . . . 1 . Unauthorized Hacks 5 | . . . 1 1 2 . . . 1 Terminals 5 | . . . 1 1 2 . . . 1 Botnet 5 | . . . 1 1 2 . . . 1 Fabricators . | . . . . . . . . . . Repair Stations . | . . . . . . . . . . Recycling Units . | . . . . . . . . . . Scanalyzers . | . . . . . . . . . . Garrison Access . | . . . . . . . . . . Data Cores Recovered 3 | . . . 1 . . . . . 2 Used 3 | . . . 1 . . . . . 2 Hacking Detections 29 | . 1 1 6 5 6 1 5 1 3 Full Trace Events 1 | . . . . . . . 1 . . Feedback Events . | . . . . . . . . . . Feedback Blocked . | . . . . . . . . . . Robot Schematics Acquired . | . . . . . . . . . . Robots Built . | . . . . . . . . . . Authchips . | . . . . . . . . . . Time . | . . . . . . . . . . Total Robot Build Rating . | . . . . . . . . . . Part Schematics Acquired . | . . . . . . . . . . Parts Built 2 | . . . . . . . 2 . . Authchips . | . . . . . . . . . . Time 128 | . . . . . . . 128 . . Total Part Build Rating 16 | . . . . . . . 16 . . Parts Repaired 4 | . . . . . 1 . 3 . . Time 196 | . . . . . 16 . 180 . . Parts Recycled . | . . . . . . . . . . Recycled Matter 221 | . . . . . . . 221 . . Retrieved Matter . | . . . . . . . . . . Retrieved Components . | . . . . . . . . . . Parts Scanalyzed . | . . . . . . . . . . Part Schematics Acquired . | . . . . . . . . . . Parts Damaged . | . . . . . . . . . . Bothacking | -11 -10 -9 -9 -8 -7 -6 -5 -4 -3 ------------ Run | Jun Mat Mat Sto Mat Fac Fac Fac Fac Res Used RIF Installer . | . . . . . . . . . . Robots Hacked . | . . . . . . . . . . Non-combat . | . . . . . . . . . . Combat . | . . . . . . . . . . Robot Hacks Applied . | . . . . . . . . . . Relay Couplers Released . | . . . . . . . . . . Fabnet Peak Effective % . | . . . . . . . . . . Robots Rewired 2 | . . . . . . . 2 . . Allies Hacked 1 | . . . . . . . 1 . . Hacks Repelled . | . . . . . . . . . . Allies | -11 -10 -9 -9 -8 -7 -6 -5 -4 -3 -------- Run | Jun Mat Mat Sto Mat Fac Fac Fac Fac Res Total Allies 2 | . . . . . . . 2 . . Largest Group 2 | . . . . . . . 2 . . Highest-Rated Group 78 | . . . . . . . 78 . . Highest-Rated Ally 49 | . . . . . . . 49 . . Total Orders . | . . . . . . . . . . Ally Attacks . | . . . . . . . . . . Total Damage . | . . . . . . . . . . Kills . | . . . . . . . . . . Allies Corrupted . | . . . . . . . . . . Allies Melted . | . . . . . . . . . . Intel | -11 -10 -9 -9 -8 -7 -6 -5 -4 -3 ------- Run | Jun Mat Mat Sto Mat Fac Fac Fac Fac Res Robot Analysis Total . | . . . . . . . . . . Derelict Logs Recovered . | . . . . . . . . . . Drone Launches . | . . . . . . . . . . Drone Recoveries . | . . . . . . . . . . Exploration | -11 -10 -9 -9 -8 -7 -6 -5 -4 -3 ------------- Run | Jun Mat Mat Sto Mat Fac Fac Fac Fac Res Turns Passed 7720 | . 182 305 863 961 1870 141 2191 360 847 Spaces Moved 3427 | 1 140 120 430 375 1015 82 794 177 293 Core . | . . . . . . . . . . Treads . | . . . . . . . . . . Legs 3314 | 1 140 85 430 375 1015 82 794 177 215 Wheels 95 | . . 35 . . . . . . 60 Hover 18 | . . . . . . . . . 18 Flight . | . . . . . . . . . . Fastest Speed 110 | 120 120 110 120 120 120 124 122 122 120 Average Speed 144 | 120 120 124 120 192 139 124 154 128 148 Slowest Speed 470 | 120 120 190 120 260 190 124 197 194 470 Overloaded Moves . | . . . . . . . . . . Propulsion Burnouts . | . . . . . . . . . . Robots Hopped . | . . . . . . . . . . Cave-ins Triggered . | . . . . . . . . . . Exploration Rate (%) 24 | 2 30 12 80 41 31 4 25 8 9 Regions Visited 9 Branch Regions 1 Pre-discovered Areas . | . . . . . . . . . . Known Exits Taken 4 | . 1 . . . . 1 1 1 . Unknown Exits Taken 5 | 1 . 1 1 1 1 . . . . Scrap Searched . | . . . . . . . . . . Spaces Dug 36 | . . . . . 10 . 19 1 6 Terrain Destroyed 107 | . . . . . 41 . 49 7 10 Melee 34 | . . . . . 10 . 17 1 6 Projectile 35 | . . . . . . . 25 6 4 AOE 38 | . . . . . 31 . 7 . . Terrain Rammed . | . . . . . . . . . . Walls Destroyed . | . . . . . . . . . . Machines Disabled . | . . . . . . . . . . Actions | -11 -10 -9 -9 -8 -7 -6 -5 -4 -3 --------- Run | Jun Mat Mat Sto Mat Fac Fac Fac Fac Res Total 5397 | . 152 236 673 484 1339 121 1557 246 589 Wait 1211 | . 1 51 137 19 174 35 585 14 195 Move 3419 | . 139 119 429 374 1014 81 793 177 293 Hop . | . . . . . . . . . . Pick Up 79 | . 3 9 8 12 19 1 14 7 6 Fast Attach 51 | . 4 7 3 1 6 . 9 4 17 Attach 46 | . . . 3 6 8 2 7 8 12 Detach 7 | . 1 . . 1 3 . . 1 1 Swap 87 | . . 6 16 10 18 1 22 8 6 Drop 90 | . 3 18 23 2 26 1 17 . . Fire 297 | . 1 26 53 54 57 . 66 22 18 Melee 80 | . . . . . 10 . 25 4 41 Ram . | . . . . . . . . . . Kick 17 | . . . 1 5 4 . 6 1 . Crush . | . . . . . . . . . . Escape Stasis . | . . . . . . . . . . Rewire 13 | . . . . . . . 13 . . Trap . | . . . . . . . . . . Miscellaneous . | . . . . . . . . . . Route ------- -11/Junkyard -10/Materials (discovered 4 exits: *Mat x3 / [*Min]) -9/Materials -9/Storage -8/Materials -7/Factory (discovered 4 exits: *Fac x2 / *Low x2) -6/Factory -5/Factory -4/Factory -3/Research History --------- Turn | Location | Event 1 | -11/Junkyard | Discovered new exit (range 0) 1 | -11/Junkyard | Entered Materials 111 | -10/Materials | Discovered new exit (range 4) 151 | -10/Materials | Discovered new exit (range 14) 156 | -10/Materials | Identified exit to Materials 183 | -10/Materials | Entered another Materials area 183 | -9/Materials | Evolved 2 slots: Propulsion x1, Weapon x1 392 | -9/Materials | Discovered new exit (range 16) 488 | -9/Materials | Entered Storage 770 | -9/Storage | Build established: Scavenger-Gunner 1263 | -9/Storage | Build established: Gunner 1337 | -9/Storage | Discovered new exit (range 10) 1351 | -9/Storage | Entered Materials 1351 | -8/Materials | Evolved 2 slots: Propulsion x1, Weapon x1 1929 | -8/Materials | Destroyed 7 combat bots 2279 | -8/Materials | Discovered new exit (range 6) 2312 | -8/Materials | Entered Factory 2312 | -7/Factory | Evolved 2 slots: Propulsion x1, Utility x1 2708 | -7/Factory | Build established: Skirmisher 2988 | -7/Factory | Repaired Cooling System 3428 | -7/Factory | Discovered new exit (range 15) 3541 | -7/Factory | Discovered new exit (range 16) 4077 | -7/Factory | Discovered new exit (range 5) 4142 | -7/Factory | Identified exit to Lower Caves 4182 | -7/Factory | Entered another Factory area 4182 | -6/Factory | Evolved 2 slots: Utility x2 4264 | -6/Factory | Discovered new exit (range 11) 4288 | -6/Factory | Identified exit to Factory 4323 | -6/Factory | Entered another Factory area 4323 | -5/Factory | Evolved 2 slots: Utility x2 4628 | -5/Factory | Fabricated Adv. Force Field (x2) 4701 | -5/Factory | Spotted B-75 Beast 4825 | -5/Factory | Lost 3 parts (3n) 5281 | -5/Factory | Destroyed 8 combat bots 5958 | -5/Factory | Repaired Imp. Titanium Leg 6028 | -5/Factory | Repaired Adv. Force Field 6090 | -5/Factory | Lost 3 parts (1u2w) 6369 | -5/Factory | Repaired Adv. Force Field 6369 | -5/Factory | Build established: Gunner 6471 | -5/Factory | Discovered new exit (range 8) 6486 | -5/Factory | Identified exit to Factory 6514 | -5/Factory | Entered another Factory area 6514 | -4/Factory | Evolved 2 slots: Power x1, Utility x1 6737 | -4/Factory | Lost 5 parts (2n1u2w) 6789 | -4/Factory | Discovered new exit (range 11) 6872 | -4/Factory | Identified exit to Research 6874 | -4/Factory | Entered Research 6874 | -3/Research | Evolved 2 slots: Propulsion x1, Utility x1 7019 | -3/Research | Spotted B-86 Titan 7330 | -3/Research | Lost 4 parts (1p2n1w) 7471 | -3/Research | Lost 17 parts (3p7n2u5w) 7543 | -3/Research | Lost 3 parts (2u1w) 7547 | -3/Research | System corruption reached 10% 7580 | -3/Research | Lost 3 parts (1p1n1u) 7711 | -3/Research | Core integrity fell below 50% 7721 | -3/Research | Self-destructed Last Messages --------------- 07694_ G-67 Veteran unfolds itself. 07694_ Gamma Rifle destroyed. 07696_ System Restoration Module purges 1% system corruption (9%). 07697_ K-01 Serf collects debris. 07698_ Mic. Antimatter Reactor destroyed. 07698_ Com. Wheel destroyed. 07701_ System corrupted: Matter fused (-8). 07702_ System Restoration Module purges 1% system corruption (8%). 07705_ S-43 Plague destroyed. 07707_ Imp. Antigrav System destroyed. 07708_ S-43 Plague destroyed. 07708_ Scythe follow-up attack on S-43 Plague. 07708_ Lgt. Antimatter Reactor destroyed. 07712_ S-43 Plague destroyed. 07712_ Flexi-carbon Leg destroyed. 07716_ System Restoration Module purges 1% system corruption (7%). 07718_ Imp. Antigrav System destroyed. 07718_ Com. Wheel destroyed. 07719_ R-10 Processor collects Hvy. Machine Gun. 07720_ U-05 Engineer builds a Wall. Map ----- +----------------------------------------------------+ | ?????????????????????????????????????????????????? | | ?????????????????????????????????????????????????? | | ?????????????????????????????????????????????????? | | ?????????????????????????????????????????????????? | | ?????????????????????????????????????????????????? | | ?????????????????????????????????????????????????? | | ?????????????????????????????????????????????????? | | ?????????????????????????????????????????????????? | | ?????????????????????????????????????????????????? | | ?????????????????????????????????????????????????? | | ?????????????????????????????????????????????????? | | ?????????????????????????????????????????????????? | | ?????????????????????##??????????????????????????? | | ?????????????????????# ??????????????????????????? | | ?????????????????????? ?????????????????????????? | | ?????????????????????? ?????????????????????????? | | ??????????????????????# ?????????????????????????? | | ??????????????????????# ?????????????????????????? | | ??????????????????????# ####?????????????????????? | | ??????????????????????# +?????????????????????? | | ??????????????????????# #?????????????????????? | | ??????????????????????# #?????????????????????? | | ??????????????????????# #?????????????????????? | | ??????????????????????#s * #?????????????#???????? | | ??????????????????????# =%[#??????????? #???????? | | ??????????????????????#s @%########## ########? | | ??????????????????????# == R #? | | ??????????????????????# *% #? | | ??????????????????????# = ## | | ??????????????????????# g R ## | | ??????????????????????###################### ## | | ?????????????????????????# # ## | | ?????????????????????????# # ## | | ?????????????????????????# % # ## | | ?????????????????????????# / ## | | ?????????????????????????# "%# ## | | ?????????????????????????# "# ## | | ?????????????????????????# # #? | | ????????????"????"""?????################### #? | | ????????????"""??"""???????################# ## | | ????????????G????"""??????? | | ????????????"""??????????? | | ????????????"????????????? ^ | | ?????????????????"""?????? | | ?????????????????"""??????? !#######+######+## | | ?????????????????"""?????????????????? ?? | | ???????????????????????????????????? # | | ??????????????????????????????????# # """ | | ??????????????????????????????????# # """ | | ??????????????????????????????????# # """ | +----------------------------------------------------+ Best States ------------- Heat Dissipation 87 Coolant Potential 100 Energy Generation 42 Energy Capacity 375 Matter Stores 300 Matter Capacity 300 Sight Range 16 Robot Scan Range 18 Terrain Scan Density 10 Power Amplification 30 Evasion (%) 55 Targeting Accuracy 8 Recoil Reduction 2 Item Schematics ----------------- None Robot Schematics ------------------ None Fabricated ------------ Adv. Force Field | x2 | -5/Factory | Preloaded Alien Tech Used ----------------- None Achievements -------------- None Challenges ------------ None Game ------ Seed DerelictLightpackInsulator Manual? 0 Play Time 01:04:38 Cumulative 212.1 hours Start 2024.02.22 @ 23:08:04 End 2024.02.23 @ 00:10:22 Sessions 1 Manual Loads 0 Difficulty Rogue Special Mode None Game No. 124 Rogue 124 Adventurer 0 Explorer 0 Win Type - Total 2 Types 2/0/0/0/0/0/0/0/0 Lore% 50 Gallery% 70 Achievement% 55 Wizard Run 0 Options --------- ASCII 0 Keyboard 1 Movement Numpad Keybinds 0 Fullscreen 1 Font 24/Smallcaps Map View 76x50 Tactical HUD 1 Map Filters NONE Filters NONE Steam 1 RUN: 82c7be1f-5bf2-4e9f-81c7-08b5376a07c0